Cogmind - Beta 13 @@@ ROGUE MODE // 2024.04.11 @ 12:44:14 Player: arcadio rl Result: Destroyed by Y-45 Defender with Heavy Assault Rifle Performance ------------- Evolutions (2) 1000 Regions Visited (4) 800 Robots Destroyed (30) 150 Value Destroyed (471) 471 Prototype IDs (12) 240 Alien Tech Used (0) 0 Bonus (99) 99 TOTAL SCORE: 2760 Bonus ------- High Alert Combat Kills 11 Follower Combat Kills 88 Cogmind --------- Core Integrity 0/550 Matter 295/300 Energy 123/125 System Corruption 0% Temperature Cool (13) Movement Flying (37) Location -8/Materials Parts ------- > --- POWER (1) -------- Light Ion Engine > --- PROPULSION (4) --- Flight Unit Improved Flight Unit > --- UTILITY (4) ------ Advanced Weight Redist. System Power Shielding Power Shielding > --- WEAPON (2) ------- Great Maul > --- INVENTORY (5) ---- Improved EM Shotgun Particle Gun Subdweller Shrapnel Launcher Peak State ------------ > --- POWER ------------ (None) > --- PROPULSION ------- Improved Flight Unit Improved Flight Unit Improved Flight Unit Improved Flight Unit > --- UTILITY ---------- Improved Heat Sink Compact Battery Signal Interpreter Propulsion Shielding > --- WEAPON ----------- Minigun Makeshift Axe > --- INVENTORY -------- Flight Unit Advanced Weight Redist. System Improved EM Shotgun Particle Gun Subdweller Shrapnel Launcher [Rating: 28] Favorites ----------- Power Light Ion Engine Engine Light Ion Engine Propulsion Improved Flight Unit Wheel Wheel Flight Unit Improved Flight Unit Utility Propulsion Shielding Device Improved Heat Sink Storage Small Storage Unit Processor Signal Interpreter Protection Propulsion Shielding Weapon Particle Gun Energy Gun Particle Gun Ballistic Gun Minigun Launcher Rocket Launcher Impact Weapon Great Maul Slashing Weapon Makeshift Axe Build | -11 -10 -10 -10 -8 ------- Run | Yrd Mat Min Sub Mat Slots Evolved 4 | . . . . 4 Power . | . . . . . Propulsion 2 | . . . . 2 Utility 2 | . . . . 2 Weapon . | . . . . . Parts Attached 48 | 8 14 8 2 16 Power 7 | 1 3 1 . 2 Engine 7 | 1 3 1 . 2 Core . | . . . . . Reactor . | . . . . . Propulsion 15 | 3 5 1 . 6 Treads . | . . . . . Leg . | . . . . . Wheel 6 | 3 3 . . . Hover . | . . . . . Flight 9 | . 2 1 . 6 Utility 13 | 2 3 . 2 6 Device 4 | 1 . . 1 2 Storage 3 | 1 1 . . 1 Processor 1 | . 1 . . . Hackware . | . . . . . Protection 5 | . 1 . 1 3 Artifact . | . . . . . Weapon 13 | 2 3 6 . 2 Energy Gun 8 | 2 3 3 . . Energy Cannon . | . . . . . Ballistic Gun 1 | . . . . 1 Ballistic Cannon . | . . . . . Launcher 2 | . . 2 . . Special Weapon . | . . . . . Impact Weapon 1 | . . . . 1 Slashing Weapon 1 | . . 1 . . Piercing Weapon . | . . . . . Special Melee Weapon . | . . . . . Unidentified Prototypes 1 | . 1 . . . Parts Lost 12 | . 1 . 1 10 Power 3 | . 1 . 1 1 Propulsion 4 | . . . . 4 Utility 3 | . . . . 3 Weapon 2 | . . . . 2 Highest Loss Streak 10 | . 1 . 1 10 To Critical Strikes . | . . . . . Average Slot Usage (%) 94 | . 99 100 97 79 Engine 10 | . 13 14 11 1 Wheel 7 | . 20 . . . Flight 21 | . 7 28 28 32 Device 1 | . . . . 6 Storage 5 | . 10 . . 5 Processor 8 | . 3 14 14 6 Protection 13 | . 13 14 14 10 Energy Gun 19 | . 28 24 14 5 Slashing Weapon 4 | . . 3 14 8 Naked Turns . | . . . . . Heaviest Build 28 | 13 28 11 11 13 Greatest Support 32 | 26 32 10 10 23 Greatest Overweight (x) 2 | . 2 1 1 1 Average Overweight (x) . | . . . . . Largest Inventory Capacity 15 | 8 15 5 5 5 Average Capacity 6 | 7 8 5 5 5 Most Carried 9 | 6 9 5 5 5 Average Carried 5 | 4 7 4 4 3 Final Capacity 8 | 8 5 5 5 5 Final Carried 6 | 6 5 5 5 3 Class Distribution -------------------- 80% | Mutant 19% | Sprinter Dominant Class ---------------- Mutant | -10/Materials Mutant | -10/Mines Mutant | -10/Subcaves Sprinter | -8/Materials Resources | -11 -10 -10 -10 -8 ----------- Run | Yrd Mat Min Sub Mat Matter Collected 668 | 280 145 113 20 110 Remotely 71 | 71 . . . . Salvage Created 764 | 145 404 91 . 124 Parts 60 | 12 29 8 . 11 Haulers Intercepted 1 | . 1 . . . Recyclers Shooed . | . . . . . Parts Field Recycled . | . . . . . Retrieved Matter . | . . . . . Parts Self-Destructed . | . . . . . Prevented . | . . . . . Kills | -11 -10 -10 -10 -8 ------- Run | Yrd Mat Min Sub Mat Combat Hostiles Destroyed 18 | . 8 6 . 4 Melee 4 | . . . . 4 Guns 11 | . 7 4 . . AOE 2 | . . 2 . . Classes Destroyed 9 | 2 6 . . 1 Worker 2 | . 1 . . 1 Builder 1 | . 1 . . . Tunneler 4 | 3 . 1 . . Hauler 1 | . 1 . . . Recycler 1 | 1 . . . . Watcher 3 | . 2 . . 1 Swarmer 9 | . 3 5 . 1 Cutter 3 | . . . . 3 Grunt 6 | . 5 1 . . Best Kill Streak 4 | 4 3 2 . 4 Combat Bots Only 4 | . 3 2 . 4 Max Kills in Single Turn 1 | 1 1 1 . 1 Gunslinging . | . . . . . Exploded 1 | . . 1 . . Melee 1 | . . . . 1 Uniques/NPCs Destroyed . | . . . . . Combat | -11 -10 -10 -10 -8 -------- Run | Yrd Mat Min Sub Mat Hostile Shots Fired 262 | . 48 36 4 174 Missed 111 | . 15 16 3 77 Damage Taken 1776 | . 378 225 67 1106 Core 676 | . 76 28 14 558 Absorbed by Shields . | . . . . . Redirected to Shielding 110 | . 29 6 9 66 Regen/Repaired (Parts) 44 | . . . . 44 Core Remaining (%) 76 | 100 . . 52 . Volleys Fired 67 | 6 47 10 . 4 Largest 2 | 2 2 2 . 1 Hottest 130 | 100 130 130 . 65 Shots Fired 129 | 12 92 20 1 4 Gun 126 | 12 92 17 1 4 Cannon . | . . . . . Launcher 3 | . . 3 . . Special . | . . . . . Kinetic . | . . . . . Thermal 126 | 12 92 17 1 4 Explosive 3 | . . 3 . . Electromagnetic . | . . . . . Robot Hit Streak 10 | 5 10 6 . 1 Robot Miss Streak 4 | 1 4 3 1 3 Penetration Max . | . . . . . Secondary Targets 2 | . . 2 . . Max Gunslinging Chain 1 | . . 1 . . Shots Hit Robots 85 | 9 51 17 . 8 Core Hits 42 | 5 23 8 . 6 Critical Kills . | . . . . . Critical Parts Destroyed . | . . . . . Critical Strikes 10 | . 6 3 . 1 Burn 7 | . 6 1 . . Sever 3 | . . 2 . 1 Melee Attacks 26 | . . 8 . 18 Impact . | . . . . . Slashing 26 | . . 8 . 18 Piercing . | . . . . . Sneak Attacks 3 | . . 2 . 1 Combat Hostiles . | . . . . . Follow-up Attacks . | . . . . . Damage Inflicted 1998 | 114 776 774 . 334 Guns 1068 | 114 776 160 . 18 Cannons . | . . . . . Explosions 283 | . . 283 . . Melee 647 | . . 331 . 316 Ramming . | . . . . . Kinetic . | . . . . . Thermal 1068 | 114 776 160 . 18 Explosive 283 | . . 283 . . Electromagnetic . | . . . . . Impact . | . . . . . Slashing 647 | . . 331 . 316 Piercing . | . . . . . Highest Corruption 1 | . 1 1 1 . Average Corruption 1 | . 1 1 1 . Corruption Purged . | . . . . . Corruption Blocked . | . . . . . Effects 8 | . 2 3 3 . Message Errors 4 | . . 2 2 . Matter Fused 1 | . 1 . . . Heat Flow Errors 1 | . . 1 . . Data Loss (minor) 1 | . 1 . . . Misfires 1 | . . . 1 . Overload Shots . | . . . . . Overflow Damage 157 | . . 157 . . Projectiles . | . . . . . Explosions 28 | . . 28 . . Melee 129 | . . 129 . . Knockbacks . | . . . . . Impact . | . . . . . Kinetic . | . . . . . Secondary . | . . . . . Self-Inflicted Damage 48 | . . 48 . . Shots 1 | . . 1 . . Rammed . | . . . . . Targets Rammed . | . . . . . Kicked . | . . . . . Crushed . | . . . . . Highest Temperature 450 | 117 450 329 . 2 Average Temperature 119 | 44 128 116 . 2 Received Heat Transfer 378 | . 189 27 . 162 Effects 6 | . 4 2 . . Energy Bleed 3 | . 2 1 . . Interference 2 | . 1 1 . . Damage (major) 1 | . 1 . . . Siege Activations . | . . . . . Robots Corrupted . | . . . . . Combat Hostiles . | . . . . . Parts Fried . | . . . . . Impact Corruptions . | . . . . . Robots Melted 1 | . 1 . . . Combat Hostiles 1 | . 1 . . . Parts Melted 3 | . 3 . . . Heat Transferred 3478 | 333 2664 444 . 37 Parts Sabotaged . | . . . . . Parts Stolen . | . . . . . Parts Stripped . | . . . . . Power Chain Reactions . | . . . . . Alert | -11 -10 -10 -10 -8 ------- Run | Yrd Mat Min Sub Mat Peak Influence 461 | 20 209 461 . 310 Initial 83 | . 13 55 . 83 Average 142 | 9 91 283 . 124 Maximum Alert Level 2 | . 1 2 . 1 Low Security (%) 75 | 100 90 26 . 89 Level 1 20 | . 9 58 . 10 Level 2 3 | . . 15 . . Level 3 . | . . . . . Level 4 . | . . . . . Level 5 . | . . . . . High Security . | . . . . . Max Security . | . . . . . Squads Dispatched 5 | . 2 . . 3 Investigation . | . . . . . Extermination . | . . . . . Reinforcement 5 | . 2 . . 3 Assault . | . . . . . Garrison . | . . . . . Intercept . | . . . . . Searches Triggered . | . . . . . Construction Impeded . | . . . . . Haulers Reinforced . | . . . . . Active Scanning Responses . | . . . . . Cargo Convoy Interrupts . | . . . . . Stealth | -11 -10 -10 -10 -8 --------- Run | Yrd Mat Min Sub Mat Distress Signals 2 | . 1 . . 1 Communications Jammed . | . . . . . Distress Signals . | . . . . . Times Spotted 74 | . 19 18 1 36 Peak Tracking Total 17 | . 4 3 1 17 Tactical Retreats 11 | . 1 2 . 8 Traps | -11 -10 -10 -10 -8 ------- Run | Yrd Mat Min Sub Mat Traps Triggered 2 | . 1 . 1 . Indirectly . | . . . . . Trap Hack Attempts . | . . . . . Triggered . | . . . . . Disarmed . | . . . . . Reprogrammed . | . . . . . Reused . | . . . . . Traps Extracted . | . . . . . Installed . | . . . . . Triggered . | . . . . . Machines | -11 -10 -10 -10 -8 ---------- Run | Yrd Mat Min Sub Mat Machines Disabled . | . . . . . Max in Single Turn . | . . . . . Garrison Access 1 | . . . . 1 Machines Repaired . | . . . . . Machines Dismantled . | . . . . . Machines Sabotaged . | . . . . . Overloaded Fab Kills . | . . . . . Hacking | -11 -10 -10 -10 -8 --------- Run | Yrd Mat Min Sub Mat Machines Accessed 11 | . 5 1 1 4 Terminals 7 | . 5 1 . 1 Fabricators . | . . . . . Repair Stations 1 | . . . . 1 Recycling Units . | . . . . . Scanalyzers 1 | . . . . 1 Garrison Access 1 | . . . . 1 Total Hacks 29 | . 12 3 1 13 Successful 14 | . 2 1 1 10 Failed 15 | . 10 2 . 3 Catastrophic 2 | . 2 . . . Database Lockouts . | . . . . . Manual 18 | . 11 4 . 3 Terminals 20 | . 12 3 . 5 Fabricators . | . . . . . Repair Stations 4 | . . . . 4 Recycling Units . | . . . . . Scanalyzers 3 | . . . . 3 Garrison Access 1 | . . . . 1 Terminal Hacks 6 | . 2 1 1 2 Robot Analysis 2 | . 1 1 . . Locate Traps 1 | . 1 . . . Hauler Manifests 1 | . . . . 1 Zone Layout 1 | . . . . 1 Derelict Proto ID Bank 1 | . . . 1 . Fabricator Hacks . | . . . . . Repair Station Hacks 2 | . . . . 2 Scan Component 1 | . . . . 1 Repair 1 | . . . . 1 Recycling Unit Hacks . | . . . . . Scanalyzer 3 | . . . . 3 Insert Component 2 | . . . . 2 Analyze 1 | . . . . 1 Garrison Access Hacks 1 | . . . . 1 Seal Access 1 | . . . . 1 Unauthorized Hacks 2 | . . . . 2 Terminals 2 | . . . . 2 Botnet 1 | . . . . 1 Operators 1 | . . . . 1 Fabricators . | . . . . . Repair Stations . | . . . . . Recycling Units . | . . . . . Scanalyzers . | . . . . . Garrison Access . | . . . . . Data Cores Recovered . | . . . . . Used . | . . . . . Hacking Detections 9 | . 5 1 . 3 Full Trace Events 1 | . 1 . . . Feedback Events . | . . . . . Feedback Blocked . | . . . . . Robot Schematics Acquired . | . . . . . Robots Built . | . . . . . Authchips . | . . . . . Time . | . . . . . Total Robot Build Rating . | . . . . . Part Schematics Acquired 1 | . . . . 1 Parts Built . | . . . . . Authchips . | . . . . . Time . | . . . . . Total Part Build Rating . | . . . . . Parts Repaired 1 | . . . . 1 Time 26 | . . . . 26 Parts Recycled . | . . . . . Recycled Matter . | . . . . . Retrieved Matter . | . . . . . Retrieved Components . | . . . . . Parts Scanalyzed 1 | . . . . 1 Part Schematics Acquired 1 | . . . . 1 Parts Damaged . | . . . . . Bothacking | -11 -10 -10 -10 -8 ------------ Run | Yrd Mat Min Sub Mat Used RIF Installer . | . . . . . Robots Hacked . | . . . . . Non-combat . | . . . . . Combat . | . . . . . Robot Hacks Applied . | . . . . . Relay Couplers Released . | . . . . . Fabnet Peak Effective % . | . . . . . Robots Rewired . | . . . . . Allies Hacked . | . . . . . Hacks Repelled . | . . . . . Allies | -11 -10 -10 -10 -8 -------- Run | Yrd Mat Min Sub Mat Total Allies 4 | . . 4 . . Largest Group 3 | . . 3 . . Highest-Rated Group 63 | . . 63 . . Highest-Rated Ally 31 | . . 31 . . Total Orders . | . . . . . Ally Attacks 36 | . . 36 . . Total Damage 408 | . . 408 . . Kills 11 | . . 11 . . Allies Corrupted . | . . . . . Allies Melted . | . . . . . Intel | -11 -10 -10 -10 -8 ------- Run | Yrd Mat Min Sub Mat Robot Analysis Total 2 | . 1 1 . . Derelict Logs Recovered 3 | . . 2 1 . Drone Launches . | . . . . . Drone Recoveries . | . . . . . Exploration | -11 -10 -10 -10 -8 ------------- Run | Yrd Mat Min Sub Mat Turns Passed 2156 | 128 750 453 305 520 Spaces Moved 3087 | 103 779 881 797 527 Core 7 | 6 1 . . . Treads . | . . . . . Legs . | . . . . . Wheels 473 | 97 376 . . . Hover . | . . . . . Flight 2607 | . 402 881 797 527 Fastest Speed 31 | 50 37 37 37 31 Average Speed 44 | 82 60 37 37 34 Slowest Speed 150 | 90 150 107 107 112 Overloaded Moves . | . . . . . Propulsion Burnouts . | . . . . . Robots Hopped 19 | . 2 16 . 1 Cave-ins Triggered . | . . . . . Exploration Rate (%) 59 | 5 84 99 44 63 Regions Visited 4 Branch Regions 2 Pre-discovered Areas 2 | . . 1 1 . Known Exits Taken 3 | . 1 1 1 . Unknown Exits Taken 1 | 1 . . . . Scrap Searched 4 | . . 1 3 . Spaces Dug 7 | . . . . 7 Terrain Destroyed 43 | . . 36 . 7 Melee 7 | . . . . 7 Projectile . | . . . . . AOE 36 | . . 36 . . Terrain Rammed . | . . . . . Walls Destroyed . | . . . . . Machines Disabled . | . . . . . Actions | -11 -10 -10 -10 -8 --------- Run | Yrd Mat Min Sub Mat Total 3701 | 131 969 958 804 839 Wait 440 | 2 104 63 . 271 Move 3045 | 102 774 848 796 525 Hop 19 | . 2 16 . 1 Pick Up 25 | 9 9 2 2 3 Fast Attach 23 | 7 5 . 2 9 Attach 5 | . 1 . . 4 Detach 1 | . 1 . . . Swap 20 | 1 8 8 . 3 Drop 30 | 4 18 3 4 1 Fire 67 | 6 47 10 . 4 Melee 26 | . . 8 . 18 Ram . | . . . . . Kick . | . . . . . Crush . | . . . . . Escape Stasis . | . . . . . Rewire . | . . . . . Trap . | . . . . . Miscellaneous . | . . . . . Route ------- -11/Scrapyard -10/Materials (discovered 4 exits: *Mat x2 / *Min x2) -10/Mines (discovered 4 exits: *Mat x2 / [*Exi] / *Sub) -10/Subcaves -8/Materials History --------- Turn | Location | Event 8 | -11/Scrapyard | Discovered new exit (range 15) 129 | -11/Scrapyard | Entered Materials 309 | -10/Materials | Discovered new exit (range 12) 313 | -10/Materials | Build established: Mutant 597 | -10/Materials | Discovered new exit (range 16) 778 | -10/Materials | Discovered new exit (range 8) 782 | -10/Materials | Identified exit to Materials 809 | -10/Materials | Discovered new exit (range 16) 878 | -10/Materials | Identified exit to Mines 879 | -10/Materials | Entered Mines 889 | -10/Mines | Assisted by bots powering up and referring to "LRC-V3" 900 | -10/Mines | Received a Rocket Launcher from a helpful Derelict 944 | -10/Mines | Discovered exit to Materials (range 8) 1030 | -10/Mines | Learned Materials terminal intel 1140 | -10/Mines | Discovered exit to Materials (range 9) 1154 | -10/Mines | Received a Mining Laser from a helpful Derelict 1232 | -10/Mines | A weapon hastily lodged in a ceiling crevice suddenly fell to the ground 1252 | -10/Mines | Deemed a non-threat by the Exiles lab entrance 1252 | -10/Mines | Discovered new exit (range 5) 1328 | -10/Mines | Discovered new exit (range 12) 1332 | -10/Mines | Identified exit to Subcaves 1332 | -10/Mines | Entered Subcaves 1370 | -10/Subcaves | Learned location of Zion (-7) 1370 | -10/Subcaves | Met a Zionite searching for "candidates" 1413 | -10/Subcaves | A swath of the cavern ceiling suddenly collapsed 1448 | -10/Subcaves | Ambushed by Subdwellers from Twisted Machinery 1500 | -10/Subcaves | Visited 4L-MR0's lab 1629 | -10/Subcaves | Discovered new exit (range 11) 1633 | -10/Subcaves | Learned Materials emergency access door positions 1636 | -10/Subcaves | Identified exit to Materials 1637 | -10/Subcaves | Entered Materials 1637 | -8/Materials | Evolved 4 slots: Propulsion x2, Utility x2 1639 | -8/Materials | Loaded intel: 11 terminal locations 1700 | -8/Materials | Repaired Propulsion Shielding 1930 | -8/Materials | Build established: Sprinter 2054 | -8/Materials | Core integrity fell below 50% 2130 | -8/Materials | Core integrity fell below 20% 2157 | -8/Materials | Destroyed by Y-45 Defender with Heavy Assault Rifle Last Messages --------------- 02113_ Sneak attack on K-01 Serf. 02113_ K-01 Serf destroyed. 02114_ Extracted 50 matter. 02122_ Slug penetrates Wall. 02122_ Mak. Axe destroyed. 02127_ Acquired Lgt. Ion Engine. 02129_ Slug penetrates Wall. 02130_ Material Processor disabled. 02137_ Propulsion Shielding destroyed. 02144_ ALERT: Suspicious intruders detected, dispatching Cutter reinforcements to area. 02144_ M-28 Smith repairs S-10 Pest. 02145_ K-01 Serf cleans the Terminal. 02151_ O-24 Administrator: "IFF HANDSHAKE FAILED. SECURING TERMINAL." 02154_ O-24 Administrator uses terminal to summon reinforcements. 02154_ ALERT: Hostiles spotted, dispatching reinforcements to Terminal M010. 02154_ O-24 Administrator locks terminal. Map ----- +----------------------------------------------------+ | | | | | | | | | | | | | | | | | | | | | | | | | | | | | | | ???????????????????????????######????????????????? | | ??????????????????????????#! #????????????????? | | ??????????????????????????# #????????????????? | | ??????????????????????????# "Y" #????????????????? | | ??????????????????????????# """ ########???####### | | ??????????????????????##### ??# ##### # | | ??????????????????????# ##+##### oT # | | ??????????????????????# "" T | | ??????????????????????# ### # | | ??????????????????????## #?# ##### # | | ???????????????????????# @ #?#######???## ## | | ???????????????????????# #????????????# ## | | ???????????????????????# #???????###### ^ | | ???????????????????????# #####/#???????# + | | ??????????????????????# ???? ]??????# # | | ????????????????????o?+ Y???? #?????# ??## " | | ??????????????????????# ???? #??H??#?????# " | | ??????????????????????## ???? #???????????# | | ???????????????????????# ???? #???????????# | | ???????????????????????#????? #???????????# | | ????????????????????????????? #???????????# | | ????????????????????????????? ## ????????# | | ?????????????T???????????????##### ###+### | | ?????????????????????????????? | | ?????????????????????????????? | | ?????????????????????????????? | | ?????????????????????????????????# ###+### | | ?????????????????????????????????##?????# ## | | ????????????????????????????????????????# "" ## | | ????????????????????????????????????????# T" ## | | ????????????????????????????????????????# "" ## | | ????????????????????????????????????????# ## | | ????????????????????????????????????????# ! + | | ????????????????????????????????????????# ## | | ????????????????????????????????????????# ## | +----------------------------------------------------+ Best States ------------- Heat Dissipation 45 Energy Generation 10 Energy Capacity 300 Matter Stores 300 Matter Capacity 300 Sight Range 16 Terrain Scan Density 10 Additional Mass Support 9 Power Shielding 33 Propulsion Shielding 33 Evasion (%) 63 Item Schematics ----------------- Imp. EM Shotgun | -8/Materials | Scanalyzed Robot Schematics ------------------ None Fabricated ------------ Nothing Alien Tech Used ----------------- None Achievements -------------- None Challenges ------------ None Game ------ Seed ZhirovSurgePenetrator Manual? 0 Play Time 00:39:26 Cumulative 107.5 hours Start 2024.04.11 @ 12:04:10 End 2024.04.11 @ 12:44:14 Sessions 1 Manual Loads 0 Difficulty Rogue Special Mode None Game No. 84 Rogue 84 Adventurer 0 Explorer 0 Win Type - Total 0 Types 0/0/0/0/0/0/0/0/0 Lore% 51 Gallery% 51 Achievement% 40 Wizard Run 0 Options --------- Layout 1 ASCII 0 Keyboard 1 Movement Numpad Keybinds 0 Fullscreen 1 Font 24/Smallcaps Map View 50x35 Zoom Use 0% Tactical HUD 1 Map Filters NONE Filters NONE Steam 1 RUN: 39cee48b-7b8a-446c-8bd3-5400e594b9b8